{"text_format":"1","workbook":"xlsx","n_sheets":2,"sheets":["Sheet1","Messages"],"not_rendered":{"charts":0,"images":1,"macros":1,"external_links":0,"defined_names":1,"comments":0,"pivot_tables":0},"unopened":[],"bounds":{"document_bytes":16777216,"sheet_cells":100000,"rows_first":2000,"rows_last":500,"rows_between":2000,"halvings":0,"cell_chars":16384,"cell_head_chars":4096},"cells_cut":0,"cells_raw":0,"read":"whole","date_system":"1900"}

{"sheet":"Sheet1","index":0,"n_rows":30,"n_cols":4,"rows_kept":30,"cut":false,"hidden":false,"merged":[]}
[null,"                                                                                                       Intermediate Quiz (20 questions)"]
[]
[]
[null,"Questions","Answer","Score"]
[null,"Which Rebel pilot survived all three major battles during the original trilogy?",null,{"$f":"IF(C5=\"Wedge Antilles\",\"Correct\",\" \")","v":" "}]
[null,"On which planet was the Galactic Senate of the Republic held on?",null,{"$f":"IF(Table1[[#This Row],[Answer]]=\"Coruscant\",\"Correct\", \" \")","v":" "}]
[null,"Who Said 'Another happy landing'?",null,{"$f":"IF(Table1[[#This Row],[Answer]]=\"Obi-wan Kenobi\",\"Correct\",\" \")","v":" "}]
[null,"In the Clone Wars, Ventress was a Sith apprentice to which Sith lord?",null,{"$f":"IF(Table1[[#This Row],[Answer]]=\"Count Dooku\",\"Correct\",\" \")","v":" "}]
[null,"Which Sith lord did Obi-Wan Kenobi kill in the Phantom Menace?",null,{"$f":"IF(Table1[[#This Row],[Answer]]=\"Darth Maul\",\"Correct\",\" \")","v":" "}]
[null,"Which Resistance pilot has a black x-wing?",null,{"$f":"IF(Table1[[#This Row],[Answer]]=\"Poe Dameron\",\"Correct\",\" \")","v":" "}]
[null,"Who played Obi-Wan Kenobi in the Original Trilogy?",null,{"$f":"IF(Table1[[#This Row],[Answer]]=\"Alec Guinness\",\"Correct\",\" \")","v":" "}]
[null,"On which planet were the clones created on?",null,{"$f":"IF(Table1[[#This Row],[Answer]]=\"Kamino\",\"Correct\",\" \")","v":" "}]
[null,"On which planet did Obi-Wan and Anakin Skywalker fight on in Revenge of the Sith?",null,{"$f":"IF(Table1[[#This Row],[Answer]]=\"Mustafar\",\"Correct\",\" \")","v":" "}]
[null,"What is Count Dooku's Sith name?",null,{"$f":"IF(Table1[[#This Row],[Answer]]=\"Darth Tyrannus\",\"Correct\",\" \")","v":" "}]
[null,"In Rebels, who is the main enemy of the ghost crew?",null,{"$f":"IF(Table1[[#This Row],[Answer]]=\"Grand Admiral Thrawn\",\"Correct\",\" \")","v":" "}]
[null,"In the Empire Strikes Back, on which planet is the rebel base located?",null,{"$f":"IF(Table1[[#This Row],[Answer]]=\"Hoth\",\"Correct\",\" \")","v":" "}]
[null,"Who said 'It's treason then' in the Clone Wars?",null,{"$f":"IF(Table1[[#This Row],[Answer]]=\"General Krell\",\"Correct\",\" \")","v":" "}]
[null,"Where was the Resistance base located?",null,{"$f":"IF(Table1[[#This Row],[Answer]]=\"D'qar\",\"Correct\",\" \")","v":" "}]
[null,"What is Kylo Ren's real name?",null,{"$f":"IF(Table1[[#This Row],[Answer]]=\"Ben Solo\",\"Correct\",\" \")","v":" "}]
[null,"Who said 'I will deal with this jedi slime, myself'?",null,{"$f":"IF(Table1[[#This Row],[Answer]]=\"General Grevious\",\"Correct\",\" \")","v":" "}]
[null,"Which planet is Admiral Ackbar From?",null,{"$f":"IF(Table1[[#This Row],[Answer]]=\"Mon Calamari\",\"Correct\",\" \")","v":" "}]
[null,"What type of animal is Chewbacca?",null,{"$f":"IF(Table1[[#This Row],[Answer]]=\"Wookie\",\"Correct\",\" \")","v":" "}]
[null,"Which Star Wars animal is native to the planet of Endor?",null,{"$f":"IF(Table1[[#This Row],[Answer]]=\"Ewok\",\"Correct\",\" \")","v":" "}]
[null,"In the Clone Wars who is the leader of Mandalore Season 1?",null,{"$f":"IF(Table1[[#This Row],[Answer]]=\"Satine\",\"Correct\",\" \")","v":" "}]
[null,null,null,{"$f":"COUNTIF(Table1[Score],\"Correct\")","v":0}]
[]
[]
[]
[null,"Message"]
[null,{"$f":"VLOOKUP(D25,Messages!E3:F7,2)","v":"Noooooooooooooooooo!"}]

{"sheet":"Messages","index":1,"n_rows":7,"n_cols":6,"rows_kept":7,"cut":false,"hidden":false,"merged":[]}
[]
[null,null,null,null,"Score","Messages"]
[null,null,null,null,0,"Noooooooooooooooooo!"]
[null,null,null,null,5,"No, that's not true, that's impossible"]
[null,null,null,null,10,"Anakin, I have the high ground"]
[null,null,null,null,15,"You are on this council but we do not grant you the rank of master"]
[null,null,null,null,20,"The force is strong with this one"]